lending/lending_fUSD_20240605
["ID","MTS","AMOUNT","RATE_DAILY","PERIOD"]
[328618813,1717619439247,-500.0,0.00027397,4]
[328618814,1717619439258,-500.0,0.00027397,4]
[328618815,1717619439268,-212.31,0.00027397,4]
[328618816,1717619439277,-371.38,0.00027397,4]
[328618817,1717619439287,-500.0,0.00027397,4]
[328618818,1717619439299,-500.0,0.00027397,4]
[328618819,1717619439308,-500.0,0.00027397,4]
[328618820,1717619439318,-365.47992639,0.00027397,4]
[328618821,1717619439331,-134.52007361,0.00027397,4]
[328618822,1717619439340,-500.0,0.00027397,4]
[328618823,1717619439349,-272.24,0.00027397,4]
[328618824,1717619439359,-508.63177119,0.00027397,4]
[328618825,1717619439368,-469.76999204,0.00027397,4]
[328618826,1717619439378,-1299.12,0.00027397,4]
[328618827,1717619439387,-520.6805314,0.00027397,4]
[328618828,1717619439397,-1299.12,0.00027397,4]
[328618829,1717619439406,-1299.12,0.00027397,4]
[328618830,1717619439416,-1299.12,0.00027397,4]
[328618831,1717619439425,-500.0,0.00027397,4]
[328618832,1717619439435,-1297.83,0.00027397,4]
[328618833,1717619439445,-1297.83,0.00027397,4]
[328618834,1717619439455,-1297.83,0.00027397,4]
[328618835,1717619439464,-1297.83,0.00027397,4]
[328618836,1717619439474,-500.0,0.00027397,4]
[328618837,1717619439487,-403.33,0.00027397,4]
[328618838,1717619439497,-500.0,0.00027397,4]
[328618839,1717619439507,-537.02,0.00027397,4]
[328618840,1717619439517,-500.0,0.00027397,4]
[328618841,1717619439527,-404.38,0.00027397,4]
[328618842,1717619439537,-500.0,0.00027397,4]
[328618843,1717619439547,-500.0,0.00027397,4]
[328618844,1717619439557,-500.0,0.00027397,4]
[328618845,1717619439569,-500.0,0.00027397,4]
[328618846,1717619439579,-500.0,0.00027397,4]
[328618847,1717619439589,-401.76002202,0.00027397,4]
[328618848,1717619439601,-1185.35997798,0.00027397,4]
[328618849,1717619439611,-1587.12,0.00027397,4]
[328618850,1717619439620,-1587.12,0.00027397,4]
[328618851,1717619439630,-1587.12,0.00027397,4]
[328618852,1717619439640,-500.0,0.00027397,4]
[328618853,1717619439650,-500.0,0.00027397,4]
[328618854,1717619439661,-500.0,0.00027397,4]
[328618855,1717619439671,-547.17804526,0.00027397,4]
[328618856,1717619439681,-500.0,0.00027397,4]
[328618857,1717619439691,-529.60284169,0.00027397,4]
[328618858,1717619439700,-585.22579909,0.00027397,4]
[328618859,1717619439710,-500.0,0.00027397,4]
[328618860,1717619439720,-500.0,0.00027397,4]
[328618861,1717619439730,-500.0,0.00027397,4]
[328618862,1717619439740,-392.07509574,0.00027397,4]
[328618863,1717619439752,-500.0,0.00027397,4]
[328618864,1717619439762,-500.0,0.00027397,4]
[328618865,1717619439772,-500.0,0.00027397,4]
[328618866,1717619439782,-500.0,0.00027397,4]
[328618867,1717619439792,-647.41512651,0.000274,2]
[328618868,1717619439804,-588.13039014,0.00027586,2]
[328618869,1717619439815,-588.13039014,0.00027875,2]
[328618870,1717619439825,-2549.58716507,0.00028065,2]
[328618871,1717619439835,-1248.31846585,0.00028163,2]
[328618872,1717619439846,-588.13039014,0.00028165,2]
[328618873,1717619439855,-2549.587165,0.00028269,2]
[328618874,1717619439865,-166.29,0.00028332,2]
[328618875,1717619439875,-951.70282929,0.00028418,2]
[328618876,1717619439887,-48.29717071,0.00028418,2]
[328618877,1717619439897,-588.13039014,0.00028454,2]
[328618878,1717619439907,-2549.587165,0.00028473,2]
[328618879,1717619439917,-553.07651216,0.00028492,2]
[328618880,1717619439927,-530.19730615,0.00028496,2]
[328618881,1717619439937,-177.93545673,0.00028496,2]
[328618882,1717619439946,-2549.587165,0.00028677,2]
[328618883,1717619439956,-588.13039014,0.00028743,2]
[328618884,1717619439966,-764.42549326,0.00028798,2]
[328618885,1717619439975,-108.47154881,0.000288,7]
[328618886,1717619439987,-391.52845119,0.000288,7]
[328618887,1717619439998,-2549.587165,0.00028881,2]
[328618888,1717619440008,-500.0,0.00028939,4]
[328618889,1717619440017,-293.99724083,0.0002894,4]
[328618890,1717619440028,-500.0,0.0002894,4]
[328618891,1717619440038,-500.0,0.0002894,4]
[328618892,1717619440049,-265.85210799,0.0002899,2]
[328618893,1717619440059,-1350.0,0.00029,2]
[328618895,1717619440069,-588.13039014,0.00029032,15]
[328618896,1717619440079,-713.42,0.00029035,2]
[328618897,1717619440089,-186.31,0.00029036,2]
[328618898,1717619440099,-2549.587165,0.00029084,15]
[328618899,1717619440108,-353.66,0.00029145,4]
[328618900,1717619440119,-500.0,0.00029145,4]
[328618902,1717619440129,-150.0,0.00029178,2]
[328618904,1717619440139,-150.0,0.00029178,2]
[328618905,1717619440148,-150.0,0.00029178,2]
[328618906,1717619440158,-150.0,0.00029178,2]
[328618907,1717619440168,-150.0,0.00029178,2]
[328618908,1717619440178,-150.0,0.00029178,2]
[328618909,1717619440188,-150.0,0.00029178,2]
[328618910,1717619440198,-150.0,0.00029178,2]
[328618911,1717619440209,-150.0,0.00029178,2]
[328618912,1717619440219,-2549.587165,0.00029288,15]
[328618913,1717619440229,-588.13039014,0.00029322,15]
[328618914,1717619440238,-1000.0,0.00029324,2]
[328618915,1717619440248,-3728.5428,0.00029324,2]
[328618916,1717619440258,-1916.83,0.00029373,2]
[328618917,1717619440269,-666.28,0.00029377,4]
[328618918,1717619440279,-961.51,0.00029377,4]
[328618919,1717619440290,-500.0,0.00029377,4]
[328618920,1717619440301,-500.0,0.00029377,4]
[328618921,1717619440310,-500.0,0.00029377,4]
[328618922,1717619440319,-500.0,0.00029377,4]
[328618923,1717619440329,-1299.12,0.00029377,4]
[328618924,1717619440338,-1297.83,0.00029377,4]
[328618925,1717619440347,-632.07796142,0.00029377,4]
[328618926,1717619440357,-1587.12,0.00029377,4]
[328618927,1717619440367,-526.26047397,0.00029378,4]
[328618928,1717619440377,-500.0,0.00029378,4]
[328618929,1717619440386,-500.0,0.00029378,4]
[328618930,1717619440396,-155.0,0.00029398,2]
[328618931,1717619440406,-500.0,0.00029423,4]
[328618932,1717619440415,-202.13638649,0.00029424,4]
[328618933,1717619440424,-506.49928337,0.00029424,4]
[328618934,1717619440434,-500.0,0.00029424,4]
[328618935,1717619440443,-500.0,0.00029424,4]
[328618936,1717619440453,-500.0,0.00029424,4]
[328618937,1717619440462,-426.24370463,0.00029424,4]
[328618938,1717619440472,-161.59383203,0.00029424,4]
[328618939,1717619440483,-500.0,0.00029424,4]
[328618940,1717619440493,-500.0,0.00029424,4]
[328618941,1717619440503,-500.0,0.00029424,4]
[328618942,1717619440513,-500.0,0.00029424,4]
[328618943,1717619440523,-506.37621283,0.00029424,4]
[328618944,1717619440534,-326.74185483,0.00029424,4]
[328618945,1717619440544,-500.0,0.00029424,4]
[328618946,1717619440554,-505.2920174,0.00029424,4]
[328618947,1717619440565,-500.0,0.00029424,4]
[328618948,1717619440575,-538.01736496,0.00029424,4]
[328618949,1717619440585,-518.00254908,0.00029424,4]
[328618950,1717619440595,-516.01160868,0.00029424,4]
[328618951,1717619440605,-507.13670372,0.00029424,4]
[328618952,1717619440614,-524.08890994,0.00029424,4]
[328618953,1717619440624,-513.58590342,0.00029424,4]
[328618954,1717619440634,-527.17476893,0.00029424,4]
[328618955,1717619440644,-438.14307383,0.00029424,4]
[328618956,1717619440655,-522.68882156,0.00029424,4]
[328618957,1717619440664,-509.98725654,0.00029424,4]
[328618958,1717619440674,-500.0,0.00029424,4]
[328618959,1717619440684,-500.0,0.00029424,4]
[328618960,1717619440694,-532.96850656,0.00029424,4]
[328618961,1717619440704,-500.0,0.00029424,4]
[328618962,1717619440714,-457.5331105,0.00029424,4]
[328618963,1717619440724,-520.75762331,0.00029424,4]
[328618964,1717619440734,-507.18405625,0.00029424,4]
[328618965,1717619440744,-519.81223227,0.00029424,4]
[328618966,1717619440754,-524.25687464,0.00029424,4]
[328618967,1717619440765,-500.0,0.00029424,4]
[328618968,1717619440775,-518.44177929,0.00029424,4]
[328618969,1717619440785,-553.97412749,0.00029424,4]
[328618970,1717619440796,-500.0,0.00029424,4]
[328618971,1717619440806,-500.0,0.00029424,4]
[328618972,1717619440816,-500.0,0.00029424,4]
[328618973,1717619440825,-500.0,0.00029424,4]
[328618974,1717619440835,-306.4495374,0.00029424,4]
[328618975,1717619440846,-552.27901036,0.00029424,4]
[328618976,1717619440855,-502.71508536,0.00029424,4]
[328618977,1717619440865,-511.14648945,0.00029424,4]
[328618978,1717619440875,-400.48321302,0.00029424,4]
[328618979,1717619440885,-502.88665891,0.00029424,4]
[328618980,1717619440895,-258.70232787,0.00029424,4]
[328618981,1717619440905,-504.08872904,0.00029424,4]
[328618982,1717619440916,-500.0,0.00029424,4]
[328618983,1717619440926,-500.0,0.00029424,4]
[328618984,1717619440936,-200.52592878,0.00029424,4]
[328618985,1717619440946,-501.36562921,0.00029424,4]
[328618986,1717619440955,-500.0,0.00029424,4]
[328618987,1717619440965,-500.0,0.00029424,4]
[328618988,1717619440974,-498.0,0.00029424,4]
[328618989,1717619440984,-543.82462861,0.00029424,4]
[328618990,1717619440994,-500.0,0.00029424,4]
[328618991,1717619441003,-422.83973431,0.00029424,4]
[328618992,1717619441013,-1010.48,0.000295,2]
[328618993,1717619441023,-588.13039014,0.00029611,15]
[328618994,1717619441032,-500.0,0.00029621,4]
[328618995,1717619441042,-381.76420571,0.00029648,2]
[328618996,1717619441054,-25071.5637,0.00029677,2]
[328618997,1717619441064,-252.89515552,0.00029696,2]
[328618998,1717619441073,-154.36466412,0.00029733,2]
[328618999,1717619441084,-155.23135761,0.00029734,2]
[328619000,1717619441093,-150.0,0.00029743,2]
[328619001,1717619441103,-308.42597073,0.00029747,2]
[328619002,1717619441112,-224.77,0.00029754,2]
[328619003,1717619441247,-1500.0,0.00029755,2]
[328619004,1717619441258,-155.23135757,0.00029758,2]
[328619005,1717619441268,-1000.0,0.00029762,2]
[328619006,1717619441277,-2100.0,0.00029777,2]
[328619007,1717619441287,-155.23135757,0.00029781,2]
[328619008,1717619441298,-150.0,0.00029787,2]
[328619009,1717619441308,-300.0,0.00029789,2]
[328619010,1717619441318,-301.76085115,0.00029793,2]
[328619011,1717619441328,-317.6045917,0.00029796,2]
[328619012,1717619441338,-150.0,0.00029797,2]
[328619013,1717619441347,-150.0,0.00029798,2]
[328619014,1717619441357,-1565.74596654,0.000298,7]
[328619015,1717619441367,-1010.48,0.000298,2]
[328619016,1717619441376,-305.62,0.000298,2]
[328619017,1717619441386,-155.0,0.000298,2]
[328619018,1717619441395,-155.0,0.000298,2]
[328619019,1717619441405,-155.23135757,0.00029805,2]
[328619020,1717619441414,-150.0,0.00029807,2]
[328619021,1717619441424,-157.81,0.00029808,30]
[328619022,1717619441433,-161.2105467,0.00029828,2]
[328619023,1717619441443,-150.0,0.00029828,2]
[328619024,1717619441453,-155.23135757,0.00029829,2]
[328619025,1717619441462,-150.0,0.00029833,2]
[328619026,1717619441471,-1000.0,0.00029834,5]
[328619027,1717619441481,-1000.0,0.00029834,5]
[328619028,1717619441495,-151.0,0.00029834,7]
[328619029,1717619441504,-257.14232572,0.00029834,4]
[328619030,1717619441513,-500.0,0.00029834,4]
[328619031,1717619441523,-500.0,0.00029834,4]
[328619032,1717619441533,-500.0,0.00029834,4]
[328619033,1717619441543,-500.0,0.00029834,4]
[328619034,1717619441554,-500.0,0.00029834,4]
[328619035,1717619441566,-500.0,0.00029834,4]
[328619036,1717619441576,-500.0,0.00029834,4]
[328619037,1717619441585,-500.0,0.00029834,4]
[328619038,1717619441595,-500.0,0.00029834,4]
[328619039,1717619441605,-500.0,0.00029834,2]
[328619040,1717619441614,-500.0,0.00029834,2]
[328619041,1717619441624,-500.0,0.00029834,2]
[328619042,1717619441633,-500.0,0.00029834,2]
[328619043,1717619441643,-636.2,0.00029834,4]
[328619044,1717619441652,-636.2,0.00029834,4]
[328619045,1717619441662,-517.39703718,0.00029834,4]
[328619046,1717619441671,-279.31261235,0.00029834,4]
[328619047,1717619441681,-500.0,0.00029834,4]
[328619048,1717619441691,-500.0,0.00029834,4]
[328619049,1717619441700,-500.0,0.00029834,4]
[328619050,1717619441709,-504.02084489,0.00029834,4]
[328619051,1717619441718,-151.0,0.00029835,7]
[328619052,1717619441728,-500.0,0.00029835,4]
[328619053,1717619441737,-151.0,0.00029835,7]
[328619054,1717619441746,-300.0,0.00029842,2]
[328619055,1717619441757,-300.0,0.00029845,2]
[328619056,1717619441766,-317.6045917,0.00029848,2]
[328619057,1717619441776,-155.23135757,0.00029853,2]
[328619058,1717619441785,-154.21013298,0.00029854,2]
[328619059,1717619441796,-150.0,0.00029856,2]
[328619060,1717619441805,-150.0,0.00029862,2]
[328619061,1717619441815,-150.0,0.00029862,2]
[328619062,1717619441824,-150.0,0.00029867,2]
[328619063,1717619441833,-155.23135757,0.00029876,2]
[328619064,1717619441843,-179.02309026,0.00029885,2]
[328619065,1717619441852,-150.0,0.00029889,2]
[328619066,1717619441862,-150.0,0.00029894,2]
[328619067,1717619441871,-179.02309026,0.00029895,2]
[328619068,1717619441881,-500.0,0.00029896,4]
[328619069,1717619441890,-500.0,0.00029896,4]
[328619070,1717619441899,-500.0,0.00029896,4]
[328619071,1717619441908,-500.0,0.00029896,4]
[328619072,1717619441918,-500.0,0.00029896,4]
[328619073,1717619441928,-500.0,0.00029896,4]
[328619074,1717619441937,-1590.95,0.00029896,4]
[328619075,1717619441947,-1590.95,0.00029896,4]
[328619076,1717619441956,-594.61,0.00029896,4]
[328619077,1717619441966,-594.61,0.00029896,4]
[328619078,1717619441976,-500.0,0.00029896,4]
[328619079,1717619441985,-500.0,0.00029896,4]
[328619080,1717619441994,-500.0,0.00029896,4]
[328619081,1717619442004,-657.82,0.00029896,4]
[328619082,1717619442013,-657.82,0.00029896,4]
[328619083,1717619442022,-500.0,0.00029896,4]
[328619084,1717619442032,-500.0,0.00029896,4]
[328619085,1717619442041,-500.0,0.00029896,4]
[328619086,1717619442054,-500.0,0.00029896,4]
[328619087,1717619442064,-849.22,0.00029896,4]
[328619088,1717619442074,-849.22,0.00029896,4]
[328619089,1717619442084,-1591.1977568,0.00029896,4]
[328619090,1717619442152,-0.13524504,0.00025753,2]
[328619091,1717619442163,-215.81005396,0.00025753,2]
[328619092,1717619442174,-215.945299,0.00026575,2]
[328619093,1717619442184,-1056.6322432,0.00029896,4]
[328619094,1717619442193,-2647.83,0.00029896,4]
[328619095,1717619442203,-500.0,0.00029896,4]
[328619096,1717619442213,-500.0,0.00029896,4]
[328619097,1717619442223,-500.0,0.00029896,4]
[328619098,1717619442232,-500.0,0.00029896,4]
[328619099,1717619442242,-500.0,0.00029896,4]
[328619100,1717619442252,-500.0,0.00029896,4]
[328619101,1717619442262,-500.0,0.00029896,4]
[328619102,1717619442271,-500.0,0.00029896,4]
[328619103,1717619442281,-500.0,0.00029896,4]
[328619104,1717619442290,-500.0,0.00029896,4]
[328619105,1717619442301,-500.0,0.00029896,4]
[328619106,1717619442310,-500.0,0.00029896,4]
[328619107,1717619442319,-500.0,0.00029896,4]
[328619108,1717619442328,-500.0,0.00029896,4]
[328619109,1717619442338,-500.0,0.00029896,4]
[328619110,1717619442347,-500.0,0.00029896,4]
[328619111,1717619442356,-500.0,0.00029896,4]
[328619112,1717619442365,-500.0,0.00029896,4]
[328619113,1717619442375,-732.25,0.00029896,4]
[328619114,1717619442384,-732.25,0.00029896,4]
[328619115,1717619442393,-500.0,0.00029896,4]
[328619116,1717619442403,-500.0,0.00029896,4]
[328619117,1717619442413,-646.88,0.00029896,4]
[328619118,1717619442423,-646.88,0.00029896,4]
[328619119,1717619442432,-500.0,0.00029896,4]
[328619121,1717619442442,-457.71206429,0.00029896,4]
[328619122,1717619442452,-518.69,0.00029896,4]
[328619123,1717619442461,-518.69,0.00029896,4]
[328619124,1717619442471,-500.0,0.00029896,4]
[328619125,1717619442481,-500.0,0.00029896,4]
[328619126,1717619442494,-544.77,0.00029896,4]
[328619127,1717619442504,-544.77,0.00029896,4]
[328619128,1717619442514,-500.0,0.00029896,4]
[328619129,1717619442523,-500.0,0.00029896,4]
[328619130,1717619442535,-500.0,0.00029896,4]
[328619131,1717619442544,-500.0,0.00029896,4]
[328619132,1717619442556,-500.0,0.00029896,4]
[328619134,1717619442566,-500.0,0.00029896,4]
[328619136,1717619442576,-500.0,0.00029896,4]
[328619138,1717619442585,-500.0,0.00029896,4]
[328619139,1717619442594,-3732.59,0.00029896,4]
[328619141,1717619442603,-3732.59,0.00029896,4]
[328619142,1717619442613,-500.0,0.00029896,4]
[328619143,1717619442622,-500.0,0.00029896,4]
[328619144,1717619442631,-1077.74,0.00029896,4]
[328619145,1717619442640,-1077.74,0.00029896,4]
[328619146,1717619442651,-500.0,0.00029896,4]
[328619147,1717619442660,-500.0,0.00029896,4]
[328619148,1717619442670,-632.2,0.00029896,4]
[328619149,1717619442679,-632.2,0.00029896,4]
[328619150,1717619442688,-500.0,0.00029896,4]
[328619151,1717619442698,-500.0,0.00029896,4]
[328619152,1717619442707,-500.0,0.00029896,4]
[328619153,1717619442717,-500.0,0.00029896,4]
[328619154,1717619442726,-500.0,0.00029896,4]
[328619155,1717619442736,-500.0,0.00029896,4]
[328619156,1717619442745,-500.0,0.00029896,4]
[328619157,1717619442754,-500.0,0.00029896,4]
[328619158,1717619442763,-500.0,0.00029896,4]
[328619159,1717619442772,-500.0,0.00029896,4]
[328619160,1717619442782,-500.0,0.00029896,4]
[328619161,1717619442791,-500.0,0.00029896,4]
[328619162,1717619442801,-500.0,0.00029896,4]
[328619163,1717619442811,-1382.96,0.00029896,4]
[328619164,1717619442821,-1382.96,0.00029896,4]
[328619165,1717619442831,-500.0,0.00029896,4]
[328619166,1717619442840,-500.0,0.00029896,4]
[328619167,1717619442850,-500.0,0.00029896,4]
[328619168,1717619442859,-500.0,0.00029896,4]
[328619169,1717619442868,-500.0,0.00029896,4]
[328619170,1717619442878,-500.0,0.00029896,4]
[328619171,1717619442888,-500.0,0.00029896,4]
[328619172,1717619442897,-500.0,0.00029896,4]
[328619173,1717619442907,-500.0,0.00029896,4]
[328619174,1717619442916,-500.0,0.00029896,4]
[328619175,1717619442926,-500.0,0.00029896,4]
[328619176,1717619442935,-329.26310027,0.00029896,4]
[328619177,1717619442944,-500.0,0.00029896,4]
[328619178,1717619442954,-500.0,0.00029896,4]
[328619179,1717619442963,-112512.30829304,0.00029897,14]
[328619180,1717619442973,-666.28,0.00029897,4]
[328619181,1717619442982,-961.51,0.00029897,4]
[328619182,1717619442992,-500.0,0.00029897,4]
[328619183,1717619443003,-500.0,0.00029897,4]
[328619184,1717619443014,-352.38612273,0.00029897,4]
[328619185,1717619443023,-500.0,0.00029897,4]
[328619186,1717619443033,-1299.12,0.00029897,4]
[328619187,1717619443043,-1297.83,0.00029897,4]
[328619188,1717619443055,-1587.12,0.00029897,4]
[328619189,1717619443064,-500.0,0.00029898,4]
[328619190,1717619443073,-500.0,0.00029898,4]
[328619191,1717619443082,-380.05830757,0.00029898,4]
[328619192,1717619443099,-119.94169243,0.00029898,4]
[328619193,1717619443109,-333.05830757,0.00029898,4]
[328619194,1717619443158,-215.945299,0.00027397,2]
[328619195,1717619443167,-2549.587165,0.00029492,15]
[328619196,1717619443178,-166.94169243,0.00029898,4]
[328619197,1717619443187,-151.0,0.00029898,7]
[328619198,1717619443197,-500.0,0.00029898,4]
[328619199,1717619443206,-501.81286614,0.00029898,4]
[328619200,1717619443216,-151.0,0.00029898,7]
[328619201,1717619443225,-151.0,0.00029898,7]
[328619202,1717619443235,-500.0,0.00029898,4]
[328619203,1717619443244,-317.55449978,0.00029898,4]
[328619204,1717619443254,-500.0,0.00029898,4]
[328619205,1717619443264,-174.2775813,0.00029898,2]
[328619206,1717619443273,-12897.3462441,0.00029898,2]
[328619207,1717619443305,-0.0097212,0.00029898,2]
[328619208,1717619443316,-7075.88052522,0.00029898,2]
[328619209,1717619443326,-4483.82702315,0.00029898,2]
[328619218,1717619445553,-215.945299,0.00028219,14]
[328619219,1717619445562,-215.945299,0.00029041,14]
[328619220,1717619445575,-441.0,0.00029544,2]
[328619221,1717619445585,-4506.63948633,0.00029898,2]
[328619222,1717619445594,-150.0,0.00029899,5]
[328619223,1717619445603,-4000.0,0.00029899,2]
[328619224,1717619445613,-2895.59988706,0.00029899,2]
[328619279,1717619446325,-1448.32991294,0.00029899,2]
[328619281,1717619446334,-4000.0,0.00029899,2]
[328619283,1717619446343,-259.48806092,0.00029899,2]
[328619285,1717619446352,-259.48806091,0.00029899,2]
[328619287,1717619446362,-259.48806091,0.00029899,2]
[328619289,1717619446371,-259.48806091,0.00029899,2]
[328619291,1717619446380,-259.48806091,0.00029899,2]
[328619293,1717619446389,-259.48806091,0.00029899,2]
[328619295,1717619446399,-259.48806091,0.000299,2]
[328619297,1717619446408,-259.48806091,0.000299,2]
[328619299,1717619446418,-259.48806091,0.000299,2]
[328619301,1717619446427,-259.48806091,0.000299,2]
[328619303,1717619446437,-259.48806091,0.000299,2]
[328619305,1717619446446,-588.13039014,0.000299,15]
[328619307,1717619446455,-873.01417508,0.000299,2]
[328619309,1717619446465,-317.6045917,0.000299,2]
[328619311,1717619446474,-150.0,0.000299,6]
[328619313,1717619446485,-259.48806091,0.000299,2]
[328619315,1717619446497,-578.4648946,0.000299,2]
[328619317,1717619446506,-155.23135757,0.000299,2]
[328619319,1717619446515,-4030.35989886,0.000299,2]
[328619321,1717619446526,-150.0,0.00029913,2]
[328619323,1717619446535,-155.93527899,0.00029923,2]
[328619325,1717619446545,-1500.0,0.0002993,2]
[328619327,1717619446557,-150.0,0.00029952,2]
[328619329,1717619446570,-157.336518,0.00029955,2]
[328619331,1717619446581,-1500.0,0.00029966,2]
[328619333,1717619446590,-150.0,0.00029971,2]
[328619335,1717619446599,-1160.70266807,0.00029974,2]
[328619337,1717619446609,-500.0,0.00029977,4]
[328619339,1717619446620,-500.0,0.00029977,4]
[328619342,1717619446630,-500.0,0.00029977,4]
[328619343,1717619446639,-500.0,0.00029977,4]
[328619345,1717619446648,-500.0,0.00029977,4]
[328619348,1717619446658,-500.0,0.00029977,4]
[328619349,1717619446667,-500.0,0.00029977,4]
[328619351,1717619446677,-300.0,0.00029982,2]
[328619353,1717619446687,-150.0,0.00029985,2]
[328619355,1717619446696,-500.0,0.00029986,4]
[328619357,1717619446706,-513.92648505,0.00029986,4]
[328619359,1717619446716,-500.0,0.00029986,4]
[328619361,1717619446725,-500.0,0.00029986,4]
[328619362,1717619446734,-194.83724208,0.00029986,4]
[328619363,1717619446743,-500.0,0.00029986,4]
[328619364,1717619446753,-500.0,0.00029986,4]
[328619365,1717619446762,-500.0,0.00029986,4]
[328619366,1717619446772,-500.0,0.00029986,4]
[328619367,1717619446782,-150.0,0.00029986,2]
[328619368,1717619446791,-500.0,0.00029986,4]
[328619369,1717619446801,-579.06092129,0.00029986,4]
[328619370,1717619446811,-165.08,0.00029988,15]
[328619371,1717619446821,-772.5016248,0.00029992,2]
[328619372,1717619446831,-1590.6870358,0.00029992,2]
[328619373,1717619446841,-1000.0,0.00029995,5]
[328619374,1717619446850,-500.0,0.00029995,4]
[328619375,1717619446859,-500.0,0.00029995,4]
[328619376,1717619446868,-500.0,0.00029995,4]
[328619377,1717619446877,-500.0,0.00029995,4]
[328619378,1717619446887,-500.0,0.00029995,4]
[328619379,1717619446896,-1590.95,0.00029995,4]
[328619380,1717619446905,-594.61,0.00029995,4]
[328619381,1717619446915,-500.0,0.00029995,4]
[328619382,1717619446924,-657.82,0.00029995,4]
[328619383,1717619446934,-173.96309823,0.00029995,4]
[328619384,1717619446943,-500.0,0.00029995,4]
[328619385,1717619446952,-849.22,0.00029995,4]
[328619386,1717619446962,-2647.83,0.00029995,4]
[328619387,1717619446972,-500.0,0.00029995,4]
[328619388,1717619446981,-500.0,0.00029995,4]
[328619389,1717619446991,-500.0,0.00029995,4]
[328619390,1717619446999,-500.0,0.00029995,4]
[328619391,1717619447010,-167.11338591,0.00029995,4]
[328619392,1717619447019,-732.25,0.00029995,4]
[328619393,1717619447028,-500.0,0.00029995,2]
[328619394,1717619447037,-518.69,0.00029995,4]
[328619395,1717619447047,-500.0,0.00029995,4]
[328619396,1717619447059,-500.0,0.00029995,4]
[328619397,1717619447068,-1077.74,0.00029995,4]
[328619398,1717619447077,-500.0,0.00029995,4]
[328619399,1717619447085,-500.0,0.00029995,2]
[328619400,1717619447094,-632.2,0.00029995,4]
[328619401,1717619447103,-500.0,0.00029995,4]
[328619402,1717619447113,-500.0,0.00029995,4]
[328619403,1717619447122,-500.0,0.00029995,4]
[328619404,1717619447132,-500.0,0.00029995,4]
[328619405,1717619447141,-636.2,0.00029995,4]
[328619406,1717619447151,-500.0,0.00029995,4]
[328619407,1717619447160,-500.0,0.00029995,4]
[328619408,1717619447170,-500.0,0.00029995,4]
[328619409,1717619447178,-168.62474352,0.00029995,4]
[328619410,1717619447188,-500.0,0.00029995,4]
[328619411,1717619447198,-180.0,0.00029996,2]
[328619412,1717619447207,-1380.30322781,0.00029996,2]
[328619413,1717619447217,-209.54847409,0.00029996,2]
[328619414,1717619447226,-156.45577805,0.00029996,2]
[328619415,1717619447236,-185.39805713,0.00029996,2]
[328619416,1717619447246,-524.51431416,0.00029996,2]
[328619417,1717619447255,-155.22866668,0.00029996,3]
[328619418,1717619447265,-4149.92630394,0.00029996,2]
[328619419,1717619447275,-291.67811797,0.00029996,2]
[328619420,1717619447284,-155.0,0.00029996,2]
[328619421,1717619447294,-151.0,0.00029996,7]
[328619422,1717619447305,-666.28,0.00029996,4]
[328619423,1717619447314,-961.51,0.00029996,4]